bitfinex/quotes_SOLUSD_20250210
["timestamp","ask_amount","ask_price","bid_price","bid_amount"]
[1739176139951,3.9195,204.11,204.07,0.03]
[1739176140150,12.57143157,204.13,204.07,0.03]
[1739176141069,12.57143157,204.13,204.07,8.68223157]
[1739176142368,12.57143157,204.13,204.07,0.03]
[1739176143365,8.65223157,204.09,204.07,0.03]
[1739176144251,12.57203157,204.09,204.07,0.03]
[1739176145970,8.65223157,204.08,204.07,0.03]
[1739176147476,12.57223157,204.08,204.07,0.03]
[1739176149470,9.7976,204.13,204.07,0.03]
[1739176149471,8.65223157,204.13,204.07,0.03]
[1739176149667,8.65223157,204.14,204.08,1.5232]
[1739176150059,8.65223157,204.16,204.08,10.17543157]
[1739176150262,8.65223157,204.16,204.09,8.65223157]
[1739176150560,8.65223157,204.16,204.08,1.5232]
[1739176151362,12.57073157,204.16,204.08,1.5232]
[1739176151980,12.57073157,204.16,204.08,5.4432]
[1739176152183,8.65223157,204.19,204.11,8.65223157]
[1739176152381,8.65223157,204.18,204.11,8.65223157]
[1739176152595,8.65223157,204.15,204.08,1.5232]
[1739176153486,12.57093157,204.15,204.08,1.5232]
[1739176154796,8.65223157,204.14,204.08,1.5232]
[1739176154971,8.65223157,204.15,204.08,5.4432]
[1739176155177,8.65223157,204.16,204.08,14.09543157]
[1739176156912,8.65223157,204.16,204.08,5.4432]
[1739176157069,0.063,204.2,204.13,8.65223157]
[1739176157070,8.71523157,204.2,204.13,8.65223157]
[1739176157274,8.65223157,204.19,204.11,8.65223157]
[1739176158180,8.65223157,204.19,204.12,3.9192]
[1739176158910,8.65223157,204.19,204.12,12.57143157]
[1739176159073,0.063,204.2,204.16,8.65223157]
[1739176159401,0.063,204.2,204.17,1.5232]
[1739176159584,8.71523157,204.2,204.17,1.5232]
[1739176161398,0.063,204.19,204.17,1.5232]
[1739176166401,0.063,204.19,204.14,3.9188]
[1739176166597,8.65223157,204.18,204.12,1.5232]
[1739176166980,8.65223157,204.16,204.12,1.5232]
[1739176169009,0.063,204.19,204.12,14.09463157]
[1739176169186,0.063,204.19,204.13,8.65223157]
[1739176169495,0.063,204.19,204.14,8.65223157]
[1739176170303,0.063,204.19,204.16,8.65223157]
[1739176170489,0.063,204.19,204.15,8.65223157]
[1739176170683,0.063,204.19,204.14,8.65223157]
[1739176170891,0.063,204.19,204.13,8.65223157]
[1739176171796,0.063,204.19,204.14,8.65223157]
[1739176172007,0.063,204.19,204.15,8.65223157]
[1739176172696,0.063,204.19,204.14,0.73455898]
[1739176172697,0.063,204.19,204.14,8.65223157]
[1739176172884,0.063,204.19,204.12,10.17543157]
[1739176173614,0.063,204.19,204.12,14.09463157]
[1739176176006,0.063,204.19,204.12,10.17543157]
[1739176176905,8.65223157,204.18,204.12,1.5232]
[1739176178405,8.71523157,204.19,204.12,5.4424]
[1739176180909,12.63313157,204.19,204.12,5.4424]
[1739176183112,8.65223157,204.18,204.12,1.5232]
[1739176184996,12.57033157,204.18,204.12,1.5232]
[1739176185518,12.57033157,204.18,204.1,8.65223157]
[1739176185693,5.5358373,204.17,204.09,5.5358373]
[1739176186521,3.9184,204.16,204.09,5.5358373]
[1739176187198,5.5358373,204.15,204.07,11.0206373]
[1739176187421,5.5358373,204.15,204.07,5.4848]
[1739176188628,3.9188,204.14,204.07,5.4848]
[1739176189323,5.5358373,204.17,204.09,5.5358373]
[1739176191023,9.4541373,204.17,204.09,9.4555373]
[1739176191221,5.5358373,204.13,204.07,1.5646]
[1739176191402,5.5358373,204.13,204.07,0.03]
[1739176192891,9.4550373,204.13,204.07,0.03]
[1739176193836,12.57289409,204.12,204.07,0.03]
[1739176195415,8.65369409,204.1,204.07,0.03]
[1739176196523,8.65369409,204.11,204.07,0.03]
[1739176199333,8.65369409,204.16,204.08,8.65369409]
[1739176199503,8.65369409,204.16,204.09,8.65369409]
[1739176200019,8.65369409,204.16,204.08,8.65369409]
[1739176200240,8.65369409,204.15,204.08,8.65369409]
[1739176200614,8.65369409,204.15,204.08,12.57349409]
[1739176201143,8.65369409,204.15,204.08,3.9198]
[1739176201448,8.65369409,204.16,204.08,12.57349409]
[1739176201619,8.71669409,204.18,204.1,8.65369409]
[1739176201947,0.063,204.18,204.12,8.65369409]
[1739176202309,8.71669409,204.18,204.11,39.66829409]
[1739176203344,8.71669409,204.18,204.12,3.9192]
[1739176203553,8.65369409,204.16,204.11,1.5846]
[1739176203716,8.65369409,204.14,204.08,81.8]
[1739176203919,8.65369409,204.17,204.1,8.65369409]
[1739176204220,0.063,204.18,204.12,8.65369409]
[1739176204620,0.063,204.18,204.15,8.65369409]
[1739176204848,0.063,204.18,204.13,9.38833565]
[1739176205538,0.063,204.18,204.13,4.65354156]
[1739176205840,0.063,204.18,204.13,13.30723565]
[1739176207563,0.063,204.18,204.17,52.74652262]
[1739176207745,0.063,204.19,204.18,39.20918409]
[1739176207926,0.063,204.19,204.18,140.87792262]
[1739176208526,0.063,204.19,204.18,139.87792262]
[1739176208862,0.063,204.19,204.18,126.21509409]
[1739176209025,0.063,204.19,204.18,111.23]
[1739176209636,0.063,204.19,204.15,1.5846]
[1739176210353,8.65369409,204.18,204.11,8.65369409]
[1739176210567,8.65369409,204.16,204.1,11.28841998]
[1739176210855,8.65369409,204.16,204.1,7.36891998]
[1739176211835,8.65369409,204.16,204.1,11.28841998]
[1739176212138,0.063,204.19,204.1,11.28841998]
[1739176212139,8.65369409,204.17,204.1,11.28841998]
[1739176212847,8.65369409,204.15,204.1,7.36891998]
[1739176213167,8.65369409,204.14,204.1,7.36891998]
[1739176213346,8.65369409,204.14,204.07,0.03]
[1739176213657,8.65369409,204.13,204.07,3.9502]
[1739176213954,8.65369409,204.14,204.07,3.9502]
[1739176214256,8.65369409,204.14,204.07,12.60389409]
[1739176214752,10.2772,204.17,204.09,8.65369409]
[1739176214753,15.01259409,204.17,204.09,8.65369409]
[1739176214941,15.01259409,204.17,204.08,0.73475145]
[1739176214942,15.01259409,204.17,204.1,8.65369409]
[1739176215342,8.65369409,204.18,204.11,8.65369409]
[1739176215549,0.063,204.19,204.14,8.65369409]
[1739176215754,0.063,204.19,204.13,8.65369409]
[1739176215934,0.063,204.19,204.12,8.65369409]
[1739176216134,8.65369409,204.18,204.11,9.3883947]
[1739176216337,8.65369409,204.17,204.1,8.65369409]
[1739176216536,8.65369409,204.16,204.09,90.45369409]
[1739176217254,8.65369409,204.16,204.09,85.7197]
[1739176217863,8.65369409,204.16,204.09,94.37339409]
[1739176218457,8.65369409,204.16,204.09,12.57339409]
[1739176218840,8.65369409,204.18,204.1,9.38844045]
[1739176219039,8.65369409,204.17,204.1,8.65369409]
[1739176219449,8.65369409,204.18,204.1,8.65369409]
[1739176220957,8.65369409,204.18,204.11,3.9194]
[1739176221168,8.65369409,204.17,204.1,8.65369409]
[1739176221341,8.65369409,204.14,204.1,0.03]
[1739176223068,8.65369409,204.15,204.1,0.03]
[1739176224467,8.65369409,204.16,204.1,0.03]
[1739176224768,0.063,204.18,204.12,8.65369409]
[1739176225138,8.71669409,204.18,204.11,8.65369409]
[1739176226464,8.71669409,204.18,204.12,3.9192]
[1739176226673,0.063,204.18,204.12,13.30752709]
[1739176227270,8.71669409,204.18,204.12,3.9192]
[1739176228785,0.063,204.18,204.14,8.65369409]
[1739176228944,0.063,204.18,204.13,2.27373214]
[1739176229150,0.063,204.18,204.13,1.5391]
[1739176230054,8.65369409,204.17,204.11,3.9194]
[1739176230252,8.65369409,204.16,204.1,81.83]
[1739176230443,8.65369409,204.14,204.1,0.03]
[1739176234050,8.65369409,204.15,204.1,0.03]
[1739176235080,8.65369409,204.16,204.1,0.03]
[1739176235381,8.71669409,204.18,204.1,8.68369409]
[1739176235973,12.63479409,204.18,204.1,12.60309409]
[1739176236280,8.65369409,204.16,204.1,12.60309409]
[1739176237389,8.65369409,204.16,204.1,3.9494]
[1739176238693,8.65369409,204.16,204.1,0.03]
[1739176238899,12.57229409,204.16,204.1,0.03]
[1739176239105,8.65369409,204.14,204.1,0.03]
[1739176240267,0.063,204.18,204.1,8.68369409]
[1739176240268,8.71669409,204.18,204.1,8.68369409]
[1739176240467,0.063,204.18,204.11,8.65369409]
[1739176241298,0.063,204.18,204.1,12.60329409]
[1739176241299,8.71669409,204.18,204.1,12.60329409]
[1739176243194,0.063,204.18,204.12,10.28839409]
[1739176243397,0.063,204.18,204.13,3.919]
[1739176244702,0.063,204.18,204.12,10.28839409]
[1739176245169,0.063,204.18,204.12,14.20759409]
[1739176246912,0.063,204.18,204.12,575.59349409]
[1739176247412,8.71669409,204.18,204.12,563.0206]
[1739176247616,8.65369409,204.17,204.12,563.0206]
[1739176248202,8.65369409,204.13,204.12,561.3859]
[1739176248919,8.65369409,204.14,204.12,561.3859]
[1739176249810,8.65369409,204.13,204.12,561.3859]
[1739176251305,8.65369409,204.14,204.12,561.3859]
[1739176252012,12.57259409,204.14,204.12,561.3859]
[1739176252598,8.65369409,204.13,204.12,561.3859]
[1739176254013,12.57269409,204.13,204.12,561.3859]
[1739176257908,8.65369409,204.13,204.12,561.3859]
[1739176259914,8.65369409,204.14,204.12,561.3859]
[1739176260918,8.65369409,204.13,204.12,561.3859]
[1739176262213,12.57269409,204.13,204.12,561.3859]
[1739176263024,25.98454262,204.13,204.12,561.3859]
[1739176263700,23.99696165,204.13,204.12,561.3859]
[1739176263908,23.99696165,204.13,204.12,495.88059595]
[1739176265019,111.41590572,204.13,204.12,410.80645107]
[1739176265319,111.41590572,204.13,204.12,368.17785107]
[1739176265502,111.41590572,204.13,204.12,345.68195107]
[1739176265703,39.78751522,204.13,204.12,243.37460368]
[1739176265904,40.41451522,204.13,204.12,213.43260368]
[1739176266116,40.41451522,204.13,204.12,164.92160368]
[1739176266426,41.76374942,204.13,204.12,145.47028213]
[1739176266597,41.76374942,204.13,204.12,121.18598214]
[1739176266916,47.20355887,204.13,204.12,18.74699964]
[1739176267104,40.7846148,204.13,204.12,9.964e-05]
[1739176267416,47.20355887,204.13,204.12,9.964e-05]
[1739176268025,2.25098,204.11,204.1,0.03]
[1739176268222,0.25098,204.08,204.07,0.03]
[1739176268816,24.17098,204.08,204.07,0.03]
[1739176269016,32.83331262,204.08,204.07,0.03]
[1739176270132,13.53733853,204.06,203.97,0.03]
[1739176270327,30.86200377,204.06,203.97,0.03]
[1739176270629,28.61861522,204.06,203.97,0.03]
[1739176271330,28.74410522,204.06,203.97,0.03]
[1739176271830,22.19967115,204.06,203.97,0.03]
[1739176272428,26.12007115,204.06,203.97,0.03]
[1739176273629,25.99458115,204.06,203.97,0.03]
[1739176273841,8.66233262,204.06,203.98,8.66233262]
[1739176274215,8.66233262,204.06,203.97,8.69233262]
[1739176274430,12.58273262,204.06,203.97,0.03]
[1739176277212,12.83371262,204.06,203.97,0.03]
[1739176277531,21.49604524,204.06,203.97,0.03]
[1739176277711,34.90789377,204.06,203.97,0.03]
[1739176277918,117.90789377,204.06,203.97,0.03]
[1739176278120,121.62758833,204.06,203.97,0.03]
[1739176279055,112.96525571,204.06,203.97,0.03]
[1739176279843,107.24556115,204.06,203.97,8.69233262]
[1739176280146,93.70822262,204.06,203.98,8.66233262]
[1739176280633,93.70822262,204.06,203.97,0.03]
[1739176280634,107.24556115,204.06,203.97,8.69233262]
[1739176280835,26.12007115,204.06,203.97,0.03]
[1739176281344,12.70822262,204.06,203.97,12.61433262]
[1739176281942,12.70822262,204.06,203.97,12.61443262]
[1739176282616,12.70822262,204.06,203.97,0.03]
[1739176283015,12.83371262,204.06,203.97,0.03]
[1739176283338,0.12549,204.02,203.97,0.03]
[1739176283513,8.66233262,203.98,203.97,0.03]
[1739176285727,12.58423262,203.98,203.97,0.03]
[1739176286842,26.12157115,203.98,203.97,0.03]
[1739176287417,0.12549,203.93,203.91,0.03]
[1739176287719,22.19967115,203.92,203.91,0.03]
[1739176288951,26.12277115,203.92,203.91,0.03]
[1739176289454,8.66233262,203.92,203.91,0.03]
[1739176289959,8.78782262,203.92,203.91,0.03]
[1739176291856,8.66233262,203.92,203.91,0.03]
[1739176294965,8.72533262,204.07,204.0,8.66233262]
[1739176295251,0.063,204.07,204.03,8.66233262]
[1739176295420,0.063,204.07,204.05,8.66233262]
[1739176295624,0.063,204.07,204.02,8.66233262]
[1739176295858,0.063,204.07,204.04,8.66233262]
[1739176296038,0.063,204.07,204.05,8.66233262]
[1739176296348,8.66233262,204.15,204.06,10.32293262]
[1739176296538,8.66233262,204.15,204.08,8.66233262]
[1739176296926,8.66233262,204.16,204.09,8.66233262]
[1739176297250,8.66233262,204.15,204.08,14.67503262]
[1739176297428,8.66233262,204.15,204.08,6.0127]
[1739176297624,8.66233262,204.14,204.08,6.0127]
[1739176297827,8.66233262,204.13,204.08,6.0127]
[1739176298141,8.66233262,204.1,204.06,1.6606]
[1739176298551,28.78782262,204.12,204.06,1.6606]
[1739176299059,28.66233262,204.12,204.06,1.6606]
[1739176300061,8.66233262,204.1,204.06,1.6606]
[1739176300235,8.66233262,204.09,204.06,1.6606]
[1739176300742,8.66233262,204.1,204.06,1.6606]
[1739176301849,8.66233262,204.15,204.07,8.66233262]
[1739176302265,8.66233262,204.14,204.07,8.66233262]
[1739176302637,8.66233262,204.14,204.06,10.32293262]
[1739176303359,8.66233262,204.13,204.06,1.6606]
[1739176303729,8.66233262,204.12,204.06,1.6606]
[1739176304653,8.66233262,204.11,204.06,1.6606]
[1739176304854,8.66233262,204.09,204.06,1.6606]
[1739176305061,8.66233262,204.1,204.06,1.6606]
[1739176305557,8.66233262,204.12,204.06,1.6606]
[1739176305951,8.66233262,204.11,204.06,1.6606]
[1739176306849,28.66233262,204.07,204.06,1.6606]
[1739176307243,20.0,204.07,204.06,1.6606]
[1739176308040,20.0,204.07,204.01,1.5011]
[1739176308241,8.66233262,204.06,204.01,1.5011]
[1739176308757,12.58283262,204.06,204.01,1.5011]
[1739176311551,12.58283262,204.06,203.98,8.66233262]
[1739176311759,8.66233262,204.0,203.92,14.08633262]
[1739176312760,8.66233262,204.0,203.92,10.16343262]
[1739176312761,12.58383262,204.0,203.92,10.16343262]
[1739176312959,8.66233262,203.98,203.92,1.5011]
[1739176313165,8.66233262,203.96,203.92,1.5011]
[1739176313546,8.66233262,203.94,203.92,1.5011]
[1739176315549,8.66233262,203.96,203.92,1.5011]
[1739176315869,8.66233262,203.98,203.92,1.5011]
[1739176316570,8.66233262,203.96,203.92,1.5011]
[1739176317867,8.66233262,203.98,203.92,5.4241]
[1739176318162,8.66233262,203.96,203.92,1.5011]
[1739176318356,8.66233262,203.96,203.92,1.5311]
[1739176318557,20.0,203.97,203.92,1.5311]
[1739176319571,8.66233262,203.96,203.92,1.5311]
[1739176321557,12.58463262,203.96,203.92,1.5311]
[1739176321758,8.66233262,203.96,203.92,1.5311]
[1739176322556,20.0,203.96,203.92,5.4541]
[1739176323059,20.0,203.96,203.92,1.5311]
[1739176323060,23.9223,203.96,203.92,1.5311]
[1739176323575,8.66233262,203.95,203.92,1.5311]
[1739176324859,28.66233262,203.97,203.92,5.4542]
[1739176325050,20.0,203.97,203.92,5.4542]
[1739176325253,20.0,203.97,203.92,1.5311]
[1739176325464,8.66233262,203.96,203.92,1.5311]
[1739176326474,28.66233262,203.97,203.92,1.5311]
[1739176326981,8.66233262,203.99,203.92,14.11643262]
[1739176327153,8.66233262,204.03,203.96,8.66233262]
[1739176327481,8.66233262,204.04,203.97,8.66233262]
[1739176327975,8.66233262,204.04,203.93,0.73543204]
[1739176327976,8.66233262,204.04,203.96,8.66233262]
[1739176328575,8.66233262,204.03,203.97,3.9221]
[1739176328881,8.66233262,204.03,203.95,8.66233262]
[1739176329256,8.66233262,204.04,203.96,8.66233262]
[1739176329665,8.66233262,204.03,203.96,8.66233262]
[1739176330863,8.66233262,204.03,203.97,3.9221]
[1739176331071,8.66233262,204.03,203.96,8.66233262]
[1739176331274,8.66233262,204.01,203.94,8.66233262]
[1739176332584,8.66233262,204.01,203.95,3.9225]
[1739176332888,8.66233262,204.03,203.96,8.66233262]
[1739176333060,8.66233262,204.04,203.97,8.66233262]
[1739176333562,8.66233262,204.04,203.96,8.66233262]
[1739176333773,8.66233262,204.03,203.95,12.58483262]
[1739176334880,20.0,204.0,203.95,8.66233262]
[1739176335060,8.66233262,204.0,203.93,12.58503262]
[1739176335376,8.66233262,204.0,203.93,8.66233262]
[1739176335583,20.0,204.01,203.92,1.5311]
[1739176335584,8.66233262,203.98,203.92,1.5311]
[1739176336382,8.66233262,204.0,203.92,5.4541]
[1739176336567,8.66233262,204.0,203.93,8.66233262]
[1739176337880,8.66233262,204.02,203.95,8.66233262]
[1739176338082,8.66233262,204.04,203.97,8.66233262]
[1739176338379,28.66233262,204.04,203.98,1.5637]
[1739176338963,20.0,204.04,203.99,8.66233262]
[1739176339374,0.063,204.07,204.01,8.66233262]
[1739176339553,0.063,204.07,204.03,8.66233262]
[1739176339751,0.063,204.07,204.06,10.22603262]
[1739176340057,0.063,204.07,204.06,14.14643262]
[1739176340362,0.063,204.07,204.06,10.22603262]
[1739176344653,0.063,204.07,204.06,1.5637]
[1739176346877,0.063,204.07,204.06,14.14643262]
[1739176348690,0.063,204.07,204.06,1.5637]
[1739176350170,0.063,204.07,204.01,14.24943262]
[1739176351370,0.063,204.07,204.04,8.66233262]
[1739176351571,0.063,204.07,204.05,8.66233262]
[1739176352069,0.063,204.07,204.06,8.66233262]
[1739176354187,0.063,204.07,204.06,12.58273262]
[1739176355489,0.063,204.07,204.06,14.24863262]
[1739176356591,0.063,204.1,204.07,13.53733853]
[1739176356772,0.063,204.1,204.09,22.19967115]
[1739176357898,0.063,204.1,204.09,26.11947115]
[1739176359203,0.063,204.1,204.09,8.66233262]
[1739176359505,0.063,204.1,204.08,8.66233262]
[1739176360305,0.063,204.1,204.06,5.5862]
[1739176360306,0.063,204.1,204.09,8.66233262]
[1739176361586,0.063,204.1,204.07,8.66233262]
[1739176361792,0.063,204.1,204.06,5.5862]
[1739176361793,0.063,204.1,204.06,10.32823262]
[1739176362103,0.063,204.1,204.06,1.6659]
[1739176363903,8.66233262,204.08,204.02,1.5868]
[1739176364413,8.66233262,204.09,204.02,10.24913262]
[1739176364985,8.66233262,204.06,203.99,8.66233262]
[1739176365180,8.66233262,204.02,203.95,8.66233262]
[1739176365503,8.66233262,204.02,203.94,8.66233262]
[1739176365708,8.66233262,204.0,203.93,14.20193262]
[1739176366002,8.66233262,204.0,203.93,5.5396]
[1739176366213,28.66233262,203.97,203.93,0.03]
[1739176366377,8.66233262,203.95,203.93,0.03]
[1739176367092,8.66233262,203.96,203.93,0.03]
[1739176367293,12.58463262,203.96,203.93,0.03]
[1739176367815,8.66233262,203.94,203.93,0.03]
[1739176368900,22.19967115,203.94,203.93,0.03]
[1739176369804,8.66233262,203.94,203.93,0.03]
[1739176370593,8.78782262,203.94,203.93,0.03]
[1739176371309,20.0,203.88,203.84,0.03]
[1739176371516,8.66233262,203.86,203.84,0.03]
[1739176372012,8.66233262,203.85,203.84,0.03]
[1739176373686,33.88343386,203.85,203.84,0.03]
[1739176374002,47.29528239,203.85,203.84,0.03]
[1739176375396,33.88343386,203.85,203.84,0.03]
[1739176377124,47.29528239,203.85,203.84,0.03]
[1739176378609,13.88343386,203.85,203.78,13.88343386]
[1739176378914,13.88343386,203.83,203.75,17.80953386]
[1739176379211,13.88343386,203.81,203.74,1.6499]
[1739176379422,13.88343386,203.8,203.74,1.6499]
[1739176379791,13.88343386,203.81,203.74,5.5764]
[1739176380113,13.88343386,203.81,203.74,1.6499]
[1739176380295,13.88343386,203.81,203.74,5.5764]
[1739176380490,13.88343386,203.82,203.75,13.88343386]
[1739176380800,13.88343386,203.84,203.77,13.88343386]
[1739176381407,20.0,203.84,203.77,13.88343386]
[1739176381727,13.88343386,203.88,203.8,13.88343386]
[1739176382219,13.88343386,203.87,203.8,13.88343386]
[1739176382603,94.41184853,203.9,203.77,13.88343386]
[1739176382604,13.88343386,203.84,203.77,13.88343386]
[1739176383322,13.88343386,203.84,203.76,17.80953386]
[1739176383693,13.88343386,203.82,203.76,3.9261]
[1739176384317,13.88343386,203.83,203.76,17.80953386]
[1739176385114,13.88343386,203.84,203.76,17.80953386]
[1739176385493,13.88343386,203.82,203.76,3.9261]
[1739176386116,13.88343386,203.82,203.74,19.45973386]
[1739176386429,13.88343386,203.8,203.74,1.6499]
[1739176386800,27.27293853,203.85,203.74,19.45973386]
[1739176386801,13.88343386,203.81,203.74,19.45973386]
[1739176387692,17.80823386,203.84,203.76,13.88343386]
[1739176387905,20.0,203.81,203.76,13.88343386]
[1739176388132,17.80823386,203.84,203.76,13.88343386]
[1739176389233,20.0,203.82,203.76,13.88343386]
[1739176389430,20.0,203.82,203.76,17.80943386]
[1739176389638,33.88343386,203.82,203.75,13.88343386]
[1739176389815,83.0,203.9,203.75,13.88343386]
[1739176389816,17.80653386,203.92,203.82,1.5276]
[1739176390005,17.80653386,203.92,203.84,13.88343386]
[1739176390209,13.88343386,203.88,203.82,1.5276]
[1739176390410,13.88343386,203.83,203.78,1.5276]
[1739176391807,17.80823386,203.83,203.78,1.5276]
[1739176392235,13.41184853,203.82,203.78,1.5276]
[1739176392738,13.88343386,203.83,203.78,1.5276]
[1739176393623,0.063,203.84,203.78,1.5276]
[1739176393822,0.063,203.84,203.78,5.4534]
[1739176394043,0.063,203.84,203.78,14.1316797]
[1739176394236,0.063,203.84,203.8,8.6782797]
[1739176394537,0.063,203.84,203.82,8.6782797]
[1739176395726,0.063,203.84,203.83,3.9248]
[1739176396334,0.063,203.84,203.82,8.6782797]
[1739176396635,0.063,203.84,203.81,3.925]
[1739176396836,13.47484853,203.84,203.78,1.5276]
[1739176397519,13.41184853,203.82,203.78,1.5276]
[1739176398032,13.88712906,203.83,203.78,1.5276]
[1739176399137,13.88712906,203.81,203.74,0.03]
[1739176399318,13.41184853,203.8,203.74,0.03]
[1739176400539,13.41184853,203.8,203.75,13.88712906]
[1739176401434,0.063,203.84,203.77,13.88712906]
[1739176401629,0.063,203.84,203.82,13.88712906]
[1739176403533,0.063,203.84,203.82,17.81202906]
[1739176404540,0.063,203.84,203.83,1.5276]
[1739176409946,0.063,203.84,203.82,13.88712906]
[1739176410320,0.063,203.84,203.77,1.5276]
[1739176410321,0.063,203.84,203.8,13.88712906]
[1739176410520,0.063,203.84,203.81,13.88712906]
[1739176410825,0.063,203.84,203.83,13.88712906]
[1739176415342,0.063,203.84,203.82,0.03]
[1739176421050,13.47484853,203.84,203.82,0.03]
[1739176421841,3.9248,203.83,203.82,0.03]
[1739176422053,17.33664853,203.83,203.82,0.03]
[1739176423143,17.46213853,203.83,203.82,0.03]
[1739176425353,26.26184217,203.83,203.82,0.03]
[1739176427058,17.58762853,203.83,203.82,0.03]
[1739176427937,26.26184217,203.83,203.82,0.03]
[1739176428861,17.58762853,203.83,203.82,0.03]
[1739176431157,26.26184217,203.83,203.82,0.03]
[1739176433752,17.58762853,203.83,203.82,0.03]
[1739176436036,22.33704217,203.83,203.82,0.03]
[1739176436243,26.26184217,203.83,203.82,0.03]
[1739176436757,17.58762853,203.83,203.82,0.03]
[1739176438061,13.66282853,203.83,203.82,0.03]
[1739176438446,0.063,203.84,203.82,0.03]
[1739176439146,3.9248,203.83,203.82,0.03]
[1739176439349,13.41184853,203.83,203.82,0.03]
[1739176439738,13.53733853,203.83,203.82,0.03]
[1739176440756,0.063,203.84,203.82,0.03]
[1739176441134,17.52493853,203.84,203.82,0.03]
[1739176441362,19.09174315,203.83,203.82,0.03]
[1739176442264,19.21723315,203.83,203.82,0.03]
[1739176442470,23.14203315,203.83,203.82,0.03]
[1739176442967,45.35965163,203.83,203.82,0.03]
[1739176443268,15.66282853,203.78,203.67,1.5619]
[1739176443466,13.66282853,203.71,203.67,1.5619]
[1739176443760,0.12549,203.71,203.67,1.5619]
[1739176443969,0.12549,203.71,203.65,5.55440462]
[1739176444139,0.12549,203.7,203.63,5.58440462]
[1739176444338,3.9275,203.69,203.64,5.55440462]
[1739176444540,3.9275,203.69,203.63,5.58440462]
[1739176444737,0.12549,203.73,203.66,5.55440462]
[1739176444962,5.55440462,203.74,203.67,5.55440462]
[1739176445157,13.53733853,203.73,203.67,5.55440462]
[1739176445364,13.53733853,203.73,203.66,5.55440462]
[1739176445667,13.53733853,203.73,203.66,8.68709579]
[1739176445860,8.68709579,203.72,203.65,8.68709579]
[1739176446056,13.53733853,203.71,203.64,8.68709579]
[1739176446568,22.22443432,203.71,203.64,8.68709579]
[1739176446748,13.53733853,203.71,203.65,8.68709579]
[1739176447366,8.81258579,203.71,203.63,8.71709579]
[1739176447747,22.22443432,203.69,203.63,0.03]
[1739176447964,8.81258579,203.66,203.63,0.03]
[1739176448471,42.09894432,203.64,203.63,0.03]
[1739176450269,6.1462,203.7,203.63,0.03]
[1739176450270,8.68709579,203.66,203.63,0.03]
[1739176450561,8.68709579,203.67,203.63,0.03]
[1739176450765,8.68709579,203.66,203.63,0.03]
[1739176450946,8.68709579,203.65,203.63,0.03]
[1739176451260,8.68709579,203.64,203.63,0.03]
[1739176451463,8.81258579,203.64,203.63,0.03]
[1739176451669,8.93807579,203.64,203.63,0.03]
[1739176451856,22.34992432,203.64,203.63,0.03]
[1739176454653,22.09894432,203.64,203.63,0.03]
[1739176454851,8.68709579,203.66,203.63,0.03]
[1739176455168,8.68709579,203.65,203.63,0.03]
[1739176455547,13.41184853,203.64,203.63,0.03]
[1739176455742,22.09894432,203.64,203.63,0.03]
[1739176457471,13.41184853,203.64,203.63,0.03]
[1739176457677,8.68709579,203.68,203.63,0.03]
[1739176458170,28.68709579,203.67,203.63,0.03]
[1739176459472,13.53733853,203.67,203.63,0.03]
[1739176463581,8.68709579,203.69,203.63,0.03]
[1739176463789,87.1462,203.76,203.63,8.71709579]
[1739176463967,8.68709579,203.75,203.67,8.68709579]
[1739176464162,8.68709579,203.71,203.64,10.20739579]
[1739176464979,8.68709579,203.71,203.64,14.13579579]
[1739176465880,13.53733853,203.71,203.64,14.13579579]
[1739176466377,13.53733853,203.72,203.66,8.68709579]
[1739176466615,8.68709579,203.74,203.66,8.68709579]
[1739176466759,8.68709579,203.75,203.68,8.68709579]
[1739176466954,13.53733853,203.74,203.68,8.68709579]
[1739176467272,13.53733853,203.74,203.68,12.61459579]
[1739176467688,5.55883575,203.78,203.71,5.55883575]
[1739176467876,5.55883575,203.79,203.72,7.11443575]
[1739176468061,13.53733853,203.78,203.72,7.11443575]
[1739176468700,5.62183575,203.83,203.75,5.55883575]
[1739176468902,0.063,203.83,203.76,9.48483575]
[1739176469199,0.063,203.83,203.81,5.55883575]